bitfinex/quotes_ETHUSD_20220113
["timestamp","ask_amount","ask_price","bid_price","bid_amount"]
[1642115178445,3.685e-05,3253.3,3253.2,16.3553262]
[1642115178647,3.685e-05,3253.3,3253.2,17.5074262]
[1642115181299,1.54563672,3254.6,3253.2,17.5074262]
[1642115181300,1.54563672,3254.6,3253.3,24.51]
[1642115181499,1.54563672,3254.6,3254.2,1.05338382]
[1642115181699,0.00682107,3254.5,3254.2,1.05338382]
[1642115182099,1.54563672,3254.7,3254.2,1.05338382]
[1642115182100,0.00625265,3254.4,3254.2,1.05338382]
[1642115182300,1.18225014,3254.4,3254.2,1.05338382]
[1642115182500,0.00568423,3254.3,3254.1,3.8545]
[1642115182700,0.00568423,3254.3,3254.1,0.1229]
[1642115182899,0.0051158,3254.2,3253.9,1.58369433]
[1642115183108,0.5680158,3254.2,3253.9,1.58369433]
[1642115183300,0.77318738,3254.1,3253.9,1.58369433]
[1642115183500,2.8729,3254.0,3253.9,1.58369433]
[1642115183699,2.87687896,3254.0,3253.5,3.675]
[1642115183902,2.87687896,3254.0,3253.4,10.95150482]
[1642115183903,2.87687896,3254.0,3253.4,7.78369433]
[1642115184100,0.00341053,3253.9,3253.4,7.78369433]
[1642115184302,0.1229,3253.8,3253.4,7.78369433]
[1642115184503,1.21284211,3253.8,3253.4,7.78369433]
[1642115184750,0.00227369,3253.7,3253.4,7.78369433]
[1642115184944,0.00227369,3253.7,3253.4,6.2]
[1642115185146,1.48376506,3253.6,3253.4,6.2]
[1642115185346,1.48376506,3253.6,3253.2,0.0016]
[1642115185347,6.3229,3253.5,3253.2,0.0016]
[1642115185546,6.62403684,3253.5,3253.2,0.0016]
[1642115185744,0.44,3253.4,3253.2,0.0016]
[1642115185946,4.75,3253.2,3253.0,9.08269433]
[1642115186245,6.09873756,3253.1,3253.0,9.08269433]
[1642115186446,6.92803756,3253.1,3253.0,7.499]
[1642115186644,6.92803756,3253.1,3253.0,7.50070528]
[1642115187445,7.69703756,3253.1,3253.0,7.50070528]
[1642115189200,0.42655598,3253.1,3253.0,9.83044546]
[1642115189398,0.30365598,3253.1,3253.0,13.59541934]
[1642115190201,0.30365598,3253.1,3253.0,14.72389335]
[1642115190806,0.30365598,3253.1,3253.0,14.84679335]
[1642115191405,0.00113684,3253.5,3253.1,1.11587109]
[1642115191606,0.00113684,3253.5,3253.2,4.15944067]
[1642115192005,0.00113684,3253.5,3253.4,7.65338382]
[1642115192261,0.00113684,3253.5,3253.4,13.60224222]
[1642115192653,0.00113684,3253.5,3253.4,12.00638382]
[1642115193652,0.00113684,3253.5,3253.4,13.00638382]
[1642115193853,0.00113684,3253.5,3253.4,14.336124]
[1642115194055,0.00113684,3253.5,3253.4,18.50393449]
[1642115194657,0.00113684,3253.5,3253.4,17.50393449]
[1642115195054,0.00113684,3253.5,3253.4,18.50393449]
[1642115195254,0.00113684,3253.5,3253.4,15.336124]
[1642115195454,0.00113684,3253.5,3253.4,19.45768219]
[1642115196102,1.8492927,3254.9,3253.5,6.58889584]
[1642115196299,1.8492927,3254.9,3254.8,1.05338382]
[1642115196501,1.54563672,3254.9,3254.8,1.05338382]
[1642115197198,1.54563672,3254.9,3254.8,3.78045977]
[1642115197502,1.54563672,3254.9,3254.8,6.11019995]
[1642115197698,1.54563672,3255.2,3254.8,6.11019995]
[1642115197898,1.54563672,3255.2,3254.8,5.05681613]
[1642115198100,0.00852635,3255.0,3254.8,5.05681613]
[1642115198505,0.00795793,3254.9,3254.8,5.05681613]
[1642115198699,0.00795793,3254.9,3254.8,2.72707595]
[1642115198898,0.00909477,3254.9,3254.8,2.72707595]
[1642115199599,0.31275075,3254.9,3254.8,2.72707595]
[1642115200352,0.31275075,3254.9,3254.8,1.53585973]
[1642115200552,0.00909477,3254.9,3254.8,1.53585973]
[1642115201353,0.31275075,3254.9,3254.8,1.53585973]
[1642115202054,0.00909477,3254.9,3254.8,1.53585973]
[1642115202853,0.31275075,3254.9,3254.8,1.53585973]
[1642115203500,0.31275075,3254.9,3254.8,2.58924355]
[1642115204500,0.00909477,3254.9,3254.8,2.58924355]
[1642115205303,0.31275075,3254.9,3254.8,2.58924355]
[1642115206100,0.00909477,3254.9,3254.8,1.53585973]
[1642115206302,0.00909477,3254.9,3254.5,0.1228]
[1642115206700,1.54563672,3255.0,3254.5,0.1228]
[1642115206701,0.0073895,3254.8,3254.5,0.1228]
[1642115207101,0.00682108,3254.7,3254.5,0.1228]
[1642115207356,0.00682108,3254.7,3254.4,4.119211]
[1642115207556,0.30365598,3254.9,3254.4,4.119211]
[1642115207557,0.00625266,3254.6,3254.4,4.119211]
[1642115207955,0.00568423,3254.5,3254.4,7.72033822]
[1642115208151,0.00568423,3254.5,3254.4,0.133811]
[1642115208353,0.00568423,3254.5,3254.4,5.533811]
[1642115208553,0.00568423,3254.5,3254.4,5.5229]
[1642115208752,0.30934021,3254.5,3254.4,5.5229]
[1642115209753,0.00568423,3254.5,3254.4,5.5229]
[1642115210755,0.30934021,3254.5,3254.4,5.5229]
[1642115211605,0.00568423,3254.5,3254.4,5.5229]
[1642115211806,0.00568423,3254.5,3254.4,5.4]
[1642115212406,0.30934021,3254.5,3254.4,5.4]
[1642115213406,0.00568423,3254.5,3254.4,5.4]
[1642115214208,0.00193423,3254.5,3254.4,5.4]
[1642115214409,1.54457095,3255.0,3254.5,3.4]
[1642115214609,1.54457095,3255.0,3254.6,0.1228]
[1642115214856,0.00170527,3254.8,3254.5,3.5228]
[1642115215057,0.00170527,3254.8,3254.5,3.4]
[1642115215260,1.5445578,3255.0,3254.6,4.05]
[1642115215459,2.3208392,3255.3,3254.7,2.28758586]
[1642115215657,2.3208392,3255.3,3254.7,2.24409754]
[1642115215658,0.00113685,3254.9,3254.7,2.24409754]
[1642115215861,0.00113685,3254.9,3254.7,2.23302654]
[1642115216257,0.00113685,3254.9,3254.8,2.23302654]
[1642115217060,0.00113685,3254.9,3254.7,2.23302654]
[1642115220701,0.00113685,3254.9,3254.7,2.24411354]
[1642115220902,0.00113685,3254.9,3254.7,2.23302654]
[1642115223250,0.00113685,3254.9,3254.6,2.23302654]
[1642115224051,0.00113685,3254.9,3254.5,1.1444]
[1642115226500,0.00113685,3254.9,3254.6,2.29629425]
[1642115226801,0.00113685,3254.9,3254.8,1.05338382]
[1642115226999,0.00113685,3254.9,3254.6,2.29629425]
[1642115229402,0.00113685,3254.9,3254.7,0.011605]
[1642115229847,0.00113685,3254.9,3254.6,2.29629425]
[1642115230049,0.00113685,3254.9,3254.7,1.05338382]
[1642115230247,0.00113685,3254.9,3254.6,2.29629425]
[1642115230949,0.00113685,3254.9,3254.8,2.21980761]
[1642115231748,0.39760749,3254.9,3254.7,2.21980761]
[1642115233805,1.93443749,3254.9,3254.7,2.21980761]
[1642115235007,0.39647064,3254.8,3254.7,2.21980761]
[1642115236007,0.39647064,3254.8,3254.4,2.21980761]
[1642115236207,0.76845,3254.6,3254.5,1.34363852]
[1642115236407,0.76845,3254.6,3254.5,1.34477537]
[1642115236609,0.76845,3254.6,3254.5,0.00113685]
[1642115237448,1.06845,3254.6,3254.5,0.00113685]
[1642115237648,1.46492064,3254.6,3254.5,0.00113685]
[1642115237848,1.16492064,3254.6,3254.4,1.24456961]
[1642115238048,0.39647064,3254.6,3254.4,1.24456961]
[1642115239652,2.3129494,3254.8,3254.5,2.21980761]
[1642115239653,0.39647064,3254.7,3254.5,2.21980761]
[1642115241904,0.00113685,3254.9,3254.5,2.21980761]
[1642115241905,0.76837,3254.8,3254.5,2.21980761]
[1642115242705,0.39647064,3254.6,3254.5,2.21980761]
[1642115243504,0.39647064,3254.6,3254.5,2.23112961]
[1642115243705,0.39647064,3254.7,3254.5,5.92694905]
[1642115243905,0.39647064,3254.7,3254.6,9.37676565]
[1642115244106,0.39647064,3254.7,3254.6,9.39544363]
[1642115244610,0.00113685,3254.9,3254.6,10.55997847]
[1642115244849,0.00113685,3254.9,3254.8,2.814808]
[1642115246055,0.00113685,3254.9,3254.8,6.08799943]
[1642115246754,1.5445794,3255.3,3255.2,1.25693692]
[1642115248053,1.5445794,3255.3,3255.2,2.21980761]
[1642115248254,1.8445794,3255.3,3255.2,2.21980761]
[1642115248501,1.5445794,3255.3,3255.2,2.21980761]
[1642115248902,1.5445794,3255.3,3254.9,2.31754403]
[1642115249104,3.86279995,3255.4,3254.9,1.27507121]
[1642115249303,0.00284212,3255.2,3255.0,1.27703978]
[1642115249704,0.1228,3255.7,3255.2,6.55]
[1642115249910,3.85101054,3255.9,3255.6,6.59421082]
[1642115250103,3.85101054,3255.9,3255.8,5.588392]
[1642115250307,3.85101054,3255.9,3255.8,5.711192]
[1642115250504,3.89651911,3256.2,3255.8,5.72319747]
[1642115250711,3.89651911,3256.2,3255.9,0.1228]
[1642115250902,3.89651911,3256.2,3256.1,1.09416982]
[1642115250903,3.89822438,3256.2,3256.1,1.09416982]
[1642115251102,3.89822438,3256.2,3256.1,0.040786]
[1642115251505,3.89822438,3256.2,3255.9,2.81248958]
[1642115251506,3.89822438,3256.2,3255.9,1.46210677]
[1642115252003,0.00113685,3256.1,3255.9,1.46210677]
[1642115252555,0.00113685,3256.1,3256.0,2.22309954]
[1642115253753,0.00113685,3256.1,3256.0,3.62998964]
[1642115254153,0.07393685,3256.5,3256.0,3.62998964]
[1642115254354,0.1228,3256.7,3256.2,1.05338382]
[1642115254554,0.00170527,3256.4,3256.2,1.05338382]
[1642115254753,0.00284212,3256.6,3256.2,1.05338382]
[1642115254956,0.00113685,3256.3,3256.2,1.05338382]
[1642115255157,0.1228,3256.9,3256.2,1.05338382]
[1642115255158,0.00227369,3256.5,3256.2,1.05338382]
[1642115255353,0.1228,3256.9,3256.2,1.05338382]
[1642115255354,0.00113685,3256.3,3256.2,1.05338382]
[1642115255553,0.00397896,3256.8,3256.2,1.05338382]
[1642115255753,0.1228,3256.9,3256.6,1.42822422]
[1642115255754,0.89067,3256.9,3256.6,1.42822422]
[1642115256002,0.89067,3256.9,3256.2,1.05338382]
[1642115256003,0.76787,3256.9,3256.7,1.40535796]
[1642115256205,0.00397896,3256.8,3256.7,1.40535796]
[1642115258706,2.70397896,3256.8,3256.7,1.40535796]
[1642115259509,2.70397896,3256.8,3256.1,0.010911]
[1642115259754,0.76797,3256.6,3256.0,3.9686]
[1642115259948,0.76797,3256.6,3255.7,0.1228]
[1642115260147,0.00227369,3256.5,3255.7,0.1228]
[1642115260347,0.00227369,3256.5,3255.9,0.00113685]
[1642115260551,0.00170527,3256.4,3256.3,1.09688391]
[1642115261348,1.90142244,3256.6,3256.0,1.50464216]
[1642115261749,1.90142244,3256.6,3256.1,0.00170527]
[1642115262748,1.90142244,3256.6,3256.1,2.6403599]
[1642115262749,2.20142244,3256.6,3256.1,2.6403599]
[1642115262952,0.89089,3256.5,3256.1,2.6403599]
[1642115263152,0.76812,3256.3,3256.2,0.00113685]
[1642115263603,3.51812,3256.3,3256.2,0.00113685]
[1642115263800,5.42918708,3256.3,3256.2,0.00113685]
[1642115264000,5.42918708,3256.3,3255.9,0.00284212]
[1642115264403,0.76818,3256.1,3255.8,9.675e-05]
[1642115264601,0.76818,3256.1,3255.3,2.65458791]
[1642115264602,0.5628,3256.0,3255.3,2.65458791]
[1642115264801,1.29228082,3255.3,3255.1,0.1228]
[1642115265003,0.1228,3255.2,3255.1,0.1228]
[1642115265202,1.29228082,3255.3,3255.1,0.1228]
[1642115265403,0.1228,3255.4,3255.1,0.12734739]
[1642115265603,0.44,3255.5,3255.1,0.00454739]
[1642115266005,0.76831,3255.2,3255.1,0.00454739]
[1642115266202,1.97662,3255.5,3255.1,0.00454739]
[1642115266603,0.44,3255.5,3255.1,0.00454739]
[1642115266904,2.46149456,3255.7,3255.1,0.00454739]
[1642115268357,0.7682,3255.6,3255.1,0.00454739]
[1642115268559,0.7682,3255.6,3255.5,1.20316467]
[1642115268953,0.7682,3255.6,3255.5,1.20543836]
[1642115270556,3.4182,3255.6,3255.5,0.00227369]
[1642115271004,3.4182,3255.6,3255.3,0.00341054]
[1642115271803,3.4182,3255.6,3255.4,1.45416443]
[1642115272201,3.4182,3255.6,3255.5,0.00227369]
[1642115275853,0.7682,3255.6,3255.5,0.00227369]
[1642115278254,0.6182,3255.6,3255.5,0.00227369]
[1642115279502,0.76813,3255.8,3255.5,0.01347769]
[1642115279701,2.33869456,3255.9,3255.8,2.614809]
[1642115280400,2.33869456,3255.9,3255.8,4.00509845]
[1642115281000,0.00170527,3256.2,3255.9,1.37142221]
[1642115281201,0.00170527,3256.2,3256.0,0.1228]
[1642115281405,0.00113685,3256.1,3256.0,0.1228]
[1642115281601,0.00113685,3256.1,3255.9,1.49422221]
[1642115282659,0.00113685,3256.1,3255.9,1.37142221]
[1642115283762,0.00113685,3256.1,3255.7,1.17618382]
[1642115284160,0.00113685,3256.1,3255.7,0.1228]
[1642115285062,0.1228,3256.0,3255.7,0.1228]
[1642115285261,0.3,3256.0,3255.8,2.63882885]
[1642115285662,1.06923685,3256.1,3255.8,2.63882885]
[1642115286107,0.76923685,3256.1,3255.9,0.011762]
[1642115286304,0.76923685,3256.1,3255.8,2.63882885]
[1642115286704,0.00113685,3256.1,3255.8,2.63882885]
[1642115286903,3.10113685,3256.1,3255.8,2.63882885]
[1642115288506,3.10113685,3256.1,3256.0,1.05338382]
[1642115289308,3.10113685,3256.1,3256.0,2.15184187]
[1642115289757,3.10113685,3256.1,3256.0,4.79067072]
[1642115290852,3.10113685,3256.1,3256.0,3.7372869]
[1642115292251,3.10113685,3256.1,3256.0,2.63882885]
[1642115292650,2.85113685,3256.1,3256.0,2.63882885]
[1642115292851,2.85113685,3256.1,3255.8,2.63882885]
[1642115293053,2.75890256,3256.1,3255.8,2.63882885]
[1642115293252,2.75890256,3256.1,3255.9,0.00113685]
[1642115294505,2.75890256,3256.1,3255.9,0.04225756]
[1642115294707,2.75890256,3256.1,3256.0,1.31695238]
[1642115295908,2.75890256,3256.1,3256.0,3.95578123]
[1642115304757,2.75890256,3256.1,3256.0,2.63882885]
[1642115305652,3.05890256,3256.1,3255.9,0.00113685]
[1642115306252,2.75890256,3256.1,3255.9,0.00113685]
[1642115306453,2.75890256,3256.1,3255.9,0.01213085]
[1642115307452,2.75890256,3256.1,3256.0,2.63862035]
[1642115308501,3.05890256,3256.1,3256.0,2.63862035]
[1642115308901,2.75890256,3256.1,3256.0,2.63862035]
[1642115309503,3.05890256,3256.1,3256.0,2.63862035]
[1642115309705,3.05890256,3256.1,3255.9,2.6397572]
[1642115310902,3.82706256,3256.1,3255.9,2.6397572]
[1642115312853,3.05890256,3256.1,3255.9,2.6397572]
[1642115313054,2.75890256,3256.1,3255.9,2.6511992]
[1642115313954,2.75890256,3256.1,3255.9,2.6397572]
[1642115314154,3.05890256,3256.1,3255.9,2.6397572]
[1642115314955,2.75890256,3256.1,3255.9,2.6397572]
[1642115315155,2.75890256,3256.1,3255.9,3.70443002]
[1642115315457,2.75890256,3256.1,3256.0,3.262603]
[1642115315654,2.75890256,3256.1,3256.0,0.012603]
[1642115315855,2.75890256,3256.1,3255.9,2.6510462]
[1642115316307,2.75890256,3256.1,3256.0,2.63862035]
[1642115316707,2.75890256,3256.1,3256.0,3.69200417]
[1642115316906,2.75890256,3256.1,3256.0,3.70572117]
[1642115318308,2.75890256,3256.1,3256.0,7.43413]
[1642115318513,4.67738912,3256.6,3256.1,6.65]
[1642115318710,2.33869456,3256.8,3256.3,6.691501]
[1642115318908,2.33869456,3256.8,3256.5,1.10752722]
[1642115319110,2.33869456,3256.8,3256.7,6.738093]
[1642115319309,2.33869456,3256.8,3256.7,8.76877648]
[1642115319511,2.34267352,3256.8,3256.7,10.27011871]
[1642115319768,0.00397896,3256.8,3256.7,10.27011871]
[1642115320857,0.00397896,3256.8,3256.7,13.92522427]
[1642115321757,0.00397896,3256.8,3256.7,16.56384462]
[1642115323060,0.00397896,3256.8,3256.7,16.4844939]
[1642115324607,0.00397896,3256.8,3256.7,12.87064606]
[1642115325407,0.00397896,3256.8,3256.7,16.45499488]
[1642115327011,0.00397896,3256.8,3256.7,4.66930383]
[1642115327263,0.00397896,3256.8,3256.7,3.97680383]
[1642115327455,0.00397896,3256.8,3256.7,3.98900883]
[1642115327655,0.00397896,3256.8,3256.7,3.97680383]
[1642115328254,0.00397896,3256.8,3256.7,5.39813702]
[1642115328855,3.10397896,3256.8,3256.7,5.39813702]
[1642115329456,3.10397896,3256.8,3256.7,3.97680383]
[1642115329657,3.10397896,3256.8,3256.7,2.63862035]
[1642115330257,3.40397896,3256.8,3256.7,2.63862035]
[1642115330858,3.41804,3256.7,3256.6,2.63862035]
[1642115331109,4.74029973,3256.7,3256.6,2.63862035]
[1642115331305,4.74371027,3256.7,3256.6,2.63862035]
[1642115332107,4.74371027,3256.7,3256.4,2.63862035]
[1642115332307,1.23794606,3256.6,3256.4,2.63862035]
[1642115332506,1.24078818,3256.6,3256.4,2.63862035]
[1642115332707,0.00227369,3256.5,3256.4,2.63862035]
[1642115332908,0.12507369,3256.5,3256.4,2.63862035]
[1642115334006,0.00227369,3256.5,3256.4,2.63862035]
[1642115339308,0.00227369,3256.5,3256.3,1.2018]
[1642115339508,1.28627076,3256.2,3256.1,3.785511]
[1642115339708,0.00170527,3256.4,3256.1,3.785511]
[1642115339907,0.00170527,3256.4,3256.1,3.7746]
[1642115340108,0.00113685,3256.3,3256.2,0.012305]
[1642115340713,0.00113685,3256.3,3256.2,3.512305]
[1642115341115,0.00113685,3256.3,3256.2,6.15085471]
[1642115341909,0.00113685,3256.3,3256.2,3.512305]
[1642115342557,0.00113685,3256.3,3256.1,3.7746]
[1642115342756,0.76918685,3256.3,3256.1,3.7746]
[1642115343056,1.1333423,3256.1,3256.0,1.06429482]
[1642115343259,1.1333423,3256.1,3256.0,1.05338382]
[1642115344257,1.1333423,3256.1,3256.0,1.00338382]
[1642115345459,0.00113685,3256.3,3256.0,1.00338382]
[1642115345658,0.00113685,3256.3,3256.0,1.01553582]
[1642115346311,0.00113685,3256.3,3256.1,0.04084259]
[1642115346511,0.00113685,3256.3,3256.0,1.01553582]
[1642115346711,1.54606303,3256.3,3256.0,1.01553582]
[1642115346913,1.54606303,3256.3,3256.2,0.01329]
[1642115347313,0.00113685,3256.3,3256.2,0.01329]
[1642115349112,3.10113685,3256.3,3256.2,0.01329]
[1642115349316,3.10113685,3256.3,3256.0,1.01553582]
[1642115350063,3.10113685,3256.3,3256.0,0.012152]
[1642115350264,3.10113685,3256.3,3255.9,0.1228]
[1642115350265,5.51995868,3256.2,3255.9,0.1228]
[1642115350463,5.51204346,3256.2,3255.9,0.1228]
[1642115351165,4.38732236,3256.0,3255.9,0.1228]
[1642115351364,7.34519631,3256.0,3255.9,0.1228]
[1642115351565,7.94519631,3256.0,3255.9,0.1228]
[1642115351963,4.79519631,3256.0,3255.9,0.1228]
[1642115352462,4.19519631,3256.0,3255.9,0.1228]
[1642115352663,4.49519631,3256.0,3255.9,0.1228]
[1642115352863,1.95925,3256.0,3255.9,0.1228]
[1642115354009,3.03588947,3256.0,3255.9,0.1228]
[1642115355412,3.45868947,3256.0,3255.9,0.1228]
[1642115356813,3.33588947,3256.0,3255.9,0.1228]
[1642115360162,1.83645,3256.0,3255.9,0.1228]
[1642115360363,0.3,3256.0,3255.9,0.1228]
[1642115360562,1.06822,3256.1,3255.9,0.1228]
[1642115361012,1.06822,3256.1,3255.9,2.81061601]
[1642115361210,1.06822,3256.1,3255.9,2.76154465]
[1642115361413,0.76822,3256.1,3256.0,1.22844077]
[1642115361614,3.22393685,3256.3,3256.0,1.24507377]
[1642115361615,3.86917685,3256.3,3256.0,1.24507377]
[1642115361810,3.86917685,3256.3,3256.1,1.12656666]
[1642115362813,4.16917685,3256.3,3256.1,1.12656666]
[1642115363013,4.93727685,3256.3,3256.2,2.63874465]
[1642115363213,3.86917685,3256.3,3256.2,2.63874465]
[1642115363413,3.86917685,3256.3,3256.2,3.65925347]
[1642115363414,3.10113685,3256.3,3256.2,3.65925347]
[1642115364767,3.10113685,3256.3,3256.2,3.64212847]
[1642115369613,3.10113685,3256.3,3256.2,2.63874465]
[1642115370410,3.1,3256.3,3256.2,2.63874465]
[1642115372663,3.1,3256.3,3256.1,4.14087135]
[1642115373062,3.1,3256.3,3256.2,6.29212847]
[1642115373263,3.1,3256.3,3256.2,5.30168965]
[1642115373463,3.1,3256.3,3256.2,2.63874465]
[1642115380368,3.1,3256.3,3256.1,2.63874465]
[1642115380968,3.1,3256.3,3256.2,2.63874465]
[1642115381768,3.1,3256.3,3256.1,2.63874465]
[1642115382870,3.1,3256.3,3256.1,2.65057565]
[1642115383271,3.4,3256.3,3256.1,2.63874465]
[1642115383716,3.4,3256.3,3256.2,2.63874465]
[1642115383912,3.4,3256.3,3256.2,3.64212847]
[1642115384414,3.4,3256.3,3256.1,2.63874465]
[1642115385316,3.4,3256.3,3256.2,1.00338382]
[1642115385915,3.4,3256.3,3256.1,2.63874465]
[1642115386113,3.4,3256.3,3256.2,1.00338382]
[1642115386513,3.4,3256.3,3256.2,3.64212847]
[1642115391415,3.1,3256.3,3256.2,3.64212847]
[1642115391614,3.1,3256.3,3256.2,2.64973765]
[1642115392815,3.4,3256.3,3256.2,2.64973765]
[1642115393617,3.4,3256.3,3256.2,3.65312147]
[1642115393816,3.1,3256.3,3256.2,3.65312147]
[1642115396065,3.4,3256.3,3256.2,3.64212847]
[1642115397666,3.1,3256.3,3256.2,3.64212847]
[1642115398265,3.1,3256.3,3256.2,2.63874465]
[1642115398524,3.4,3256.3,3256.2,2.63874465]
[1642115398720,4.3845,3256.3,3256.2,2.63874465]
[1642115400322,1.54975706,3256.0,3255.9,2.64965565]
[1642115400523,4.3845,3256.3,3255.9,2.63874465]
[1642115400524,3.4,3256.3,3255.9,2.63874465]
[1642115401127,3.4,3256.3,3255.9,2.65059765]
[1642115401524,3.4,3256.3,3256.1,1.00338382]
[1642115402123,3.4,3256.3,3255.9,2.65059765]
[1642115402366,3.4,3256.3,3256.1,1.00338382]
[1642115402765,3.4,3256.3,3256.2,2.63874465]
[1642115403768,3.4,3256.3,3256.1,0.010911]
[1642115403969,3.4,3256.3,3256.0,2.63874465]
[1642115404168,3.5228,3256.3,3256.0,2.63874465]
[1642115404569,3.5228,3256.3,3256.2,2.63874465]
[1642115404869,3.4,3256.3,3256.2,2.63874465]
[1642115405669,3.4,3256.3,3256.0,2.64965565]
[1642115406716,3.4,3256.3,3256.2,2.63874465]
[1642115406917,3.1,3256.3,3256.2,2.63874465]
[1642115407121,3.4,3256.3,3256.2,2.63874465]
[1642115407320,3.4,3256.3,3255.8,0.013095]
[1642115407321,3.4,3256.3,3256.1,2.63874465]
[1642115408019,3.4,3256.3,3256.2,2.63874465]
[1642115408420,3.4,3256.3,3256.2,5.12031602]
[1642115408421,3.1,3256.3,3256.2,5.12031602]
[1642115408620,3.1,3256.3,3256.2,4.1169322]
[1642115409221,3.1,3256.3,3256.2,2.48157137]
[1642115409427,3.1,3256.3,3256.2,3.62798813]
[1642115409626,3.1,3256.3,3256.2,3.74826813]
[1642115410070,3.1,3256.3,3256.2,2.28275958]
[1642115410270,3.1,3256.3,3256.2,4.90882523]
[1642115410470,3.1,3256.3,3256.2,4.92080823]
[1642115410869,3.4,3256.3,3256.2,4.92080823]
[1642115411067,3.4,3256.3,3256.2,3.77439147]
[1642115411470,3.4,3256.3,3256.2,5.255499]
[1642115411668,3.1,3256.3,3256.2,8.99781754]
[1642115411870,0.81850881,3257.7,3256.4,0.06739733]
[1642115411871,3.13103709,3257.3,3256.4,0.06739733]
[1642115412070,3.13103709,3257.3,3257.0,0.015276]
[1642115412269,3.13103709,3257.3,3257.1,0.0123]
[1642115412669,3.13103709,3257.3,3257.2,1.24918826]
[1642115413071,3.43785817,3257.3,3257.2,1.26100326]
[1642115413271,3.43785817,3257.3,3257.2,1.24918826]
[1642115413514,0.30682108,3257.3,3257.2,3.88793291]
[1642115413816,0.30682108,3257.3,3257.2,8.4710527]
[1642115414017,0.00682108,3257.3,3257.2,7.45936258]
[1642115414214,0.00682108,3257.3,3257.2,7.44604407]
[1642115414414,0.00682108,3257.3,3257.2,3.88793291]
[1642115415016,0.00682108,3257.3,3257.2,3.89985391]
[1642115415315,0.00682108,3257.3,3257.2,3.88793291]
[1642115418570,0.00682108,3257.3,3257.2,1.24918826]
[1642115419576,0.00682108,3257.3,3257.0,0.015276]
[1642115419776,0.00682108,3257.3,3256.9,1.170611]
[1642115419972,0.00625266,3257.2,3256.9,2.70189927]
[1642115420172,0.00625266,3257.2,3257.0,3.61445834]
[1642115420373,0.1228,3257.5,3257.0,4.211157]
[1642115420374,0.00568423,3257.1,3257.0,4.211157]
[1642115421024,0.00568423,3257.1,3257.0,5.4911089]
[1642115422225,0.00568423,3257.1,3257.0,1.2911089]
[1642115422424,0.00568423,3257.1,3257.0,0.011157]
[1642115422924,0.00568423,3257.1,3257.0,3.3]
[1642115423528,0.00568423,3257.1,3256.9,2.68150959]
[1642115423928,0.1228,3257.2,3256.9,2.68150959]
[1642115423929,0.00511581,3257.0,3256.9,1.1597]
[1642115425268,1.33870099,3256.9,3256.6,1.00338382]
[1642115425468,0.76795,3256.8,3256.4,0.010911]
[1642115425668,0.77192896,3256.8,3256.4,0.010911]
[1642115425869,0.00341054,3256.7,3256.4,0.010911]
[1642115426067,1.28946284,3256.6,3256.4,0.010911]
[1642115426267,1.29230496,3256.6,3256.4,0.010911]
[1642115426467,0.00227369,3256.5,3256.4,0.010911]
[1642115426873,0.00227369,3256.5,3256.4,5.16429482]
[1642115428714,0.00227369,3256.5,3256.4,6.58591711]
[1642115429518,0.00227369,3256.5,3256.4,5.58253329]
[1642115430215,3.10227369,3256.5,3256.4,5.58253329]
[1642115430416,3.10227369,3256.5,3256.4,4.160911]
[1642115431619,3.10227369,3256.5,3256.3,1.190964]
[1642115431821,3.10227369,3256.5,3256.4,3.5864322]
[1642115432022,3.1,3256.5,3256.4,3.5864322]
[1642115433872,3.1,3256.5,3256.4,3.7092322]
[1642115437218,3.1,3256.5,3256.3,1.190964]
[1642115437620,0.00170527,3256.4,3256.3,1.190964]
[1642115438419,0.00170527,3256.4,3256.3,4.88281647]
[1642115438719,0.00170527,3256.4,3256.3,1.190964]
[1642115438918,0.00170527,3256.4,3256.3,1.313764]
[1642115439965,0.00170527,3256.4,3256.3,4.76150646]
[1642115440168,0.00170527,3256.4,3256.3,7.45401635]
[1642115440668,2.81683527,3256.5,3256.4,3.85]
[1642115441666,3.91776421,3256.5,3256.4,3.85]
[1642115442166,3.91776421,3256.5,3256.4,6.48828559]
[1642115442370,2.81683527,3256.5,3256.4,6.48828559]
[1642115442768,2.81683527,3256.5,3256.4,7.93252972]
[1642115443932,2.81683527,3256.5,3256.4,6.48828559]
[1642115444529,3.11683527,3256.5,3256.4,6.48828559]
[1642115446129,2.81683527,3256.5,3256.4,6.48828559]
[1642115447131,2.81683527,3256.5,3256.4,7.75832513]
[1642115447775,2.81683527,3256.5,3256.4,11.37731836]
[1642115449477,2.81683527,3256.5,3256.4,7.75832513]
[1642115451018,2.81683527,3256.5,3256.4,11.43146544]
[1642115452922,2.81683527,3256.5,3256.4,7.75832513]
[1642115454322,2.81683527,3256.5,3256.4,11.52572194]
[1642115457170,2.81683527,3256.5,3256.4,7.75832513]
[1642115460622,2.81683527,3256.5,3256.4,6.48828559]
[1642115465675,2.81683527,3256.5,3256.4,2.63828559]
[1642115465876,3.41936627,3256.5,3256.4,2.63828559]
[1642115466128,6.9,3256.4,3256.1,3.80487445]
[1642115466326,8.3228,3256.4,3256.1,3.80487445]
[1642115466522,8.3228,3256.4,3256.2,0.00113685]
[1642115467322,0.7681,3256.3,3256.2,0.00113685]
[1642115467923,2.17147968,3256.3,3256.2,0.00113685]
[1642115468725,1.19456966,3255.6,3255.5,1.00849963]
[1642115469025,2.17147968,3256.3,3255.5,1.00338382]
[1642115469327,0.7681,3256.3,3255.6,0.00454739]
[1642115470173,0.7681,3256.3,3255.7,0.04942385]
[1642115470374,1.53821312,3256.1,3255.6,0.00454739]
[1642115470579,1.53821312,3256.1,3255.8,1.00679436]
[1642115470877,1.53821312,3256.1,3255.9,0.00284212]
[1642115470878,1.83821312,3256.1,3255.9,0.00284212]
[1642115471673,1.83821312,3256.1,3255.5,0.00511581]
[1642115471874,0.1228,3256.0,3255.5,0.00511581]
[1642115472074,0.1228,3256.0,3255.8,1.00338382]
[1642115472274,1.83821312,3256.1,3255.8,1.00338382]
[1642115472474,1.83821312,3256.1,3255.9,0.00284212]
[1642115473926,0.3,3256.1,3255.9,0.0408146]
[1642115474123,0.1228,3256.2,3255.9,0.00284212]
[1642115474323,0.1228,3256.2,3256.0,0.00227369]
[1642115474527,0.1228,3256.2,3255.5,0.00511581]
[1642115475124,1.11521838,3256.0,3255.7,1.00338382]
[1642115475325,1.41521838,3256.0,3255.7,1.00338382]
[1642115475526,1.41521838,3256.0,3255.8,0.00341054]
[1642115476527,1.11521838,3256.0,3255.5,0.00511581]
[1642115476827,1.11521838,3256.0,3255.6,0.1228]
[1642115476828,1.41521838,3256.0,3255.6,0.1228]
[1642115477027,1.41521838,3256.0,3255.5,0.00511581]